Workbook

Sheet TOTAL as on 1 Dec
B1: National Championship/ Events participation Details | AM1: National Championship- Table Tennis | EL1: as on 1 Dec 25
AM2: Chandigarh | AN2: Count of NAME | AO2: Column Labels
C3: FEMALE | G3: FEMALE Total | H3: MALE | M3: MALE Total | N3: NATIONAL CHAMPIONSHIP ROLLER SKATING 29 Mar to 02 Apr 25 | R3: NATIONAL CHAMPIONSHIP BADMINTON 15-19 June 25 | S3: VB | T3: VB | U3: VB | V3: VB | W3: NATIONAL CHAMPIONSHIP VOLLEYBALL 15-19 June 25 | X3: TENNIS NC | Y3: FEMALE | AE3: FEMALE Total | AF3: MALE | AK3: MALE Total | AL3: NATIONAL CHAMPIONSHIP TENNIS 10-14 July 25 | AN3: FEMALE | AQ3: FEMALE Total | AR3: MALE | AU3: MALE Total | AV3: NATIONAL CHAMPIONSHIP TABLE TENNIS 14-18 July 25 | AW3: Bocce NC | AX3: ATHLETE | AZ3: ATHLETE Total | BA3: COACH | BC3: COACH Total | BD3: ESCORT | BE3: ESCORT Total | BF3: PARTNER | BH3: PARTNER Total | BI3: NATIONAL CHAMPIONSHIP BOCCE 24-28 July 25 | BJ3: BADMINTON SELECTION TRIALS | BM3: SELECTION TRIALS BADMINTON 05-09 May 25 | BN3: FOOTBALL SELECTION TRIALS | BQ3: SELECTION TRIALS FOOTBALL 24-28 Apr 25 | BR3: FEMALE | BT3: FEMALE Total | BU3: MALE | BW3: MALE Total | BX3: NATIONAL CHAMPIONSHIP SWIMMING 3-7 Aug 25 | CH3: National Championship Handball Rajasthan 02-06 Sep 2025 | CT3: National Championship Golf Haryana 07-11 Sep 2025 | DD3: Selection Trials Basketball 3X3 Gujarat 18-20 Sep 25 | DE3: National Championship Powerlifting | DF3: FEMALE | DI3: FEMALE Total | DJ3: MALE | DN3: MALE Total | DO3: MALE | DP3: MALE Total | DQ3: National Championship Powerlifting- 23-27 Sep 2025 New Delhi | DS3: FEMALE | DX3: FEMALE Total | DY3: MALE | EE3: MALE Total | EF3: National Championship Basketball-23-27 Sep 25 Odisha | EJ3: National Championship Football- 17-21 Nov 25
A4: Sr. No | B4: State | C4: ATHLETE | D4: COACH | E4: VOLUNTEER | F4: RESOURCE TEAM | H4: ATHLETE | I4: COACH | J4: MANAGER | K4: VOLUNTEER | L4: RESOURCE TEAM | N4: Total | O4: Athlete | P4: Coach | Q4: Partner | R4: Total | S4: Athlete | T4: Coach | U4: Escort/Selector | V4: Partner | W4: Total | X4: State | Y4: ATHLETE | Z4: COACH | AA4: ESCORT | AB4: EXPERT | AC4: PARTNER | AD4: SUPPORT STAFF | AF4: ATHLETE | AG4: COACH | AH4: EXPERT | AI4: PARTNER | AJ4: SUPPORT STAFF | AL4: Total | AM4: STATE | AN4: ATHLETE | AO4: COACH | AP4: PARTNER | AR4: ATHLETE | AS4: COACH | AT4: PARTNER | AV4: Total | AW4: State | AX4: FEMALE | AY4: MALE | BA4: FEMALE | BB4: MALE | BD4: FEMALE | BF4: FEMALE | BG4: MALE | BI4: Total | BJ4: State | BK4: ATHLETE | BL4: COACH | BM4: Total | BN4: State | BO4: ATHLETE | BP4: COACH | BQ4: Total | BR4: ATHLETE | BS4: COACH | BU4: ATHLETE | BV4: COACH | BX4: Grand Total NC Swimming | BY4: ATHLETE | BZ4: COACH | CA4: ESCORT | CB4: PARTNER | CD4: ATHLETE | CE4: COACH | CF4: PARTNER | CG4: MALE Total | CH4: Handball Total | CI4: State | CJ4: ATHLETE | CK4: ATHLETE | CL4: COACH | CM4: PARTNER | CN4: FEMALE Total | CO4: ATHLETE | CP4: ATHLETE | CQ4: COACH | CR4: PARTNER | CS4: MALE Total | CT4: Grand Total Golf | CU4: State | CV4: ATHLETE | CW4: COACH | CX4: PARTNER | CY4: FEMALE Total | CZ4: ATHLETE | DA4: COACH | DB4: PARTNER | DC4: MALE Total | DD4: Grand Total Basketball 3X3 | DE4: 23-27 Sep 2025 New Delhi | DF4: ATHLETE | DG4: COACH | DH4: ESCORT | DJ4: ATHLETE | DK4: COACH | DL4: COACH/ESCORT | DM4: ESCORT | DO4: ATHLETE | DQ4: Total | DR4: Row Labels | DS4: ATHLETE | DT4: ATHLETE/PARTNER | DU4: COACH | DV4: COACH/ESCORT | DW4: SUPPORT STAFF | DY4: ATHLETE | DZ4: ATHLETE | EA4: ATHLETE/PARTNER | EB4: COACH | EC4: COACH/ESCORT | ED4: SUPPORT STAFF | EF4: Total | EG4: States Names | EH4: FEMALE | EI4: MALE | EJ4: Grand Total | EK4: G TOTAL Nos | EL4: % of participated
A5: 3 | B5: ANDHRA PRADESH | C5: 4 | D5: 1 | G5: 5 | H5: 4 | I5: 1 | M5: 5 | N5: 10 | O5: 6 | P5: 2 | R5: 8 | S5: 4 | T5: 2 | V5: 2 | W5: 8 | AM5: ANDHRA PRADESH | AN5: 4 | AO5: 1 | AQ5: 5 | AR5: 4 | AS5: 1 | AU5: 5 | AV5: 10 | AW5: ANDHRA PRADESH | AX5: 3 | AY5: 3 | AZ5: 6 | BA5: 2 | BB5: 2 | BC5: 4 | BF5: 1 | BG5: 1 | BH5: 2 | BI5: 12 | BS5: 1 | BT5: 1 | BU5: 1 | BW5: 1 | BX5: 2 | BY5: 4 | BZ5: 2 | CB5: 3 | CC5: 9 | CD5: 4 | CE5: 2 | CF5: 3 | CG5: 9 | CH5: 18 | DE5: ANDHRA PRADESH | DF5: 2 | DG5: 1 | DI5: 3 | DJ5: 5 | DK5: 1 | DN5: 6 | DQ5: 9 | DR5: ANDHRA PRADESH | DY5: 4 | EA5: 2 | EB5: 1 | EE5: 7 | EF5: 7 | EG5: ANDHRA PRADESH | EH5: 7 | EI5: 7 | EJ5: 14 | EK5: =BQ5+BM5+AV5+AL5+W5+R5+N5+BI5+BX5+CH5+EJ5+EF5+DQ5 -> 98 | EL5: =10/14*100 -> 71
A6: 2 | B6: ARUNACHAL PRADESH | EK6: =BQ6+BM6+AV6+AL6+W6+R6+N6+BI6 -> 0 | EL6: =0/11*100 -> 0
A7: 1 | B7: ASSAM | AW7: ASSAM | AX7: 1 | AY7: 4 | AZ7: 5 | BA7: 1 | BB7: 1 | BC7: 2 | BI7: 7 | BJ7: ASSAM | BK7: 2 | BL7: 1 | BM7: 3 | BN7: ASSAM | BO7: 5 | BP7: 1 | BQ7: 6 | DE7: ASSAM | DJ7: 2 | DK7: 1 | DN7: 3 | DQ7: 3 | EG7: ASSAM | EI7: 9 | EJ7: 9 | EK7: =BQ7+BM7+AV7+AL7+W7+R7+N7+BI7+BX7+EJ7+DQ7 -> 28 | EL7: =5/14*100 -> 36
A8: 4 | B8: BIHAR | N8: 12 | O8: 8 | P8: 2 | Q8: 2 | R8: 12 | S8: 7 | T8: 2 | V8: 2 | W8: 11 | X8: BIHAR | AF8: 1 | AG8: 1 | AI8: 1 | AK8: 3 | AL8: 3 | AM8: BIHAR | AN8: 1 | AO8: 1 | AQ8: 2 | AR8: 1 | AS8: 2 | AU8: 3 | AV8: 5 | AW8: BIHAR | AX8: 2 | AY8: 4 | AZ8: 6 | BA8: 1 | BB8: 3 | BC8: 4 | BF8: 1 | BG8: 1 | BH8: 2 | BI8: 12 | BU8: 3 | BV8: 2 | BW8: 5 | BX8: 5 | CD8: 4 | CE8: 1 | CF8: 3 | CG8: 8 | CH8: 8 | DE8: BIHAR | DJ8: 6 | DK8: 1 | DN8: 7 | DQ8: 7 | EG8: BIHAR | EI8: 10 | EJ8: 10 | EK8: =BQ8+BM8+AV8+AL8+W8+R8+N8+BI8+BX8+CH8+EJ8+DQ8 -> 85 | EL8: =9/14*100 -> 64
A9: 5 | B9: CHANDIGRAH | C9: 2 | D9: 1 | G9: 3 | H9: 4 | I9: 1 | L9: 1 | M9: 6 | N9: 9 | O9: 5 | P9: 2 | Q9: 2 | R9: 9 | AM9: CHANDIGARH | AN9: 7 | AO9: 1 | AQ9: 8 | AR9: 8 | AS9: 1 | AU9: 9 | AV9: 17 | BJ9: CHANDIGARH | BK9: 2 | BL9: 1 | BM9: 3 | BN9: CHANDIGARH | BO9: 5 | BP9: 1 | BQ9: 6 | BR9: 2 | BS9: 2 | BT9: 4 | BU9: 3 | BV9: 1 | BW9: 4 | BX9: 8 | DE9: CHANDIGARH | DJ9: 3 | DK9: 1 | DN9: 4 | DQ9: 4 | DR9: CHANDIGRAH | DY9: 3 | EA9: 2 | EC9: 1 | EE9: 6 | EF9: 6 | EG9: CHANDIGARH | EI9: 7 | EJ9: 7 | EK9: =BQ9+BM9+AV9+AL9+W9+R9+N9+BI9+BX9+EJ9+EF9+DQ9 -> 69 | EL9: =9/14*100 -> 64
A10: 6 | B10: CHATTISGARH | O10: 6 | P10: 3 | Q10: 2 | R10: 11 | AM10: CHATTISGARH | AR10: 2 | AS10: 1 | AU10: 3 | AV10: 3 | AW10: CHHATTISGARH | AX10: 4 | AY10: 4 | AZ10: 8 | BA10: 1 | BB10: 2 | BC10: 3 | BF10: 1 | BG10: 1 | BH10: 2 | BI10: 13 | BJ10: CHATTISGARH | BK10: 1 | BL10: 1 | BM10: 2 | BN10: CHATTISGARH | BO10: 5 | BP10: 1 | BQ10: 6 | BU10: 1 | BV10: 1 | BW10: 2 | BX10: 2 | DE10: CHATTISGARH | DJ10: 3 | DK10: 1 | DN10: 4 | DQ10: 4 | DR10: CHHATTISGRAH | DY10: 1 | DZ10: 3 | EA10: 2 | EB10: 2 | EE10: 8 | EF10: 8 | EG10: CHATTISGRAH | EH10: 8 | EI10: 7 | EJ10: 15 | EK10: =BQ10+BM10+AV10+AL10+W10+R10+N10+BI10+BX10+EJ10+EF10+DQ10 -> 64 | EL10: =9/14*100 -> 64
A11: 10 | B11: DADAR NAGAR HAVELI DAMAN & DIU | EK11: =BQ11+BM11+AV11+AL11+W11+R11+N11+BI11 -> 0 | EL11: =0/11*100 -> 0
A12: 7 | B12: DELHI | C12: 2 | D12: 1 | G12: 3 | H12: 4 | I12: 1 | L12: 1 | M12: 6 | N12: 9 | O12: 6 | P12: 2 | Q12: 2 | R12: 10 | S12: 10 | T12: 4 | V12: 4 | W12: 18 | X12: DELHI | Y12: 3 | Z12: 1 | AC12: 1 | AE12: 5 | AF12: 3 | AG12: 2 | AI12: 1 | AJ12: 3 | AK12: 9 | AL12: 14 | AM12: DELHI | AN12: 2 | AO12: 1 | AP12: 1 | AQ12: 4 | AR12: 3 | AS12: 2 | AT12: 1 | AU12: 6 | AV12: 10 | AW12: DELHI | AX12: 2 | AY12: 2 | AZ12: 4 | BA12: 1 | BB12: 1 | BC12: 2 | BF12: 1 | BG12: 1 | BH12: 2 | BI12: 8 | BJ12: DELHI | BK12: 4 | BL12: 2 | BM12: 6 | BN12: DELHI | BO12: 5 | BP12: 1 | BQ12: 6 | BR12: 2 | BS12: 1 | BT12: 3 | BU12: 4 | BV12: 2 | BW12: 6 | BX12: 9 | BY12: 4 | BZ12: 2 | CB12: 3 | CC12: 9 | CD12: 4 | CE12: 2 | CF12: 3 | CG12: 9 | CH12: 18 | CI12: DELHI | CJ12: 1 | CL12: 1 | CN12: 2 | CO12: 5 | CQ12: 2 | CR12: 2 | CS12: 9 | CT12: 11 | CU12: DELHI | CV12: 1 | CW12: 1 | CX12: 1 | CY12: 3 | CZ12: 1 | DA12: 1 | DB12: 1 | DC12: 3 | DD12: 6 | DE12: DELHI | DF12: 5 | DG12: 2 | DI12: 7 | DJ12: 10 | DK12: 2 | DN12: 12 | DQ12: 19 | DR12: DELHI | DS12: 3 | DT12: 2 | DU12: 1 | DW12: 1 | DX12: 7 | DY12: 3 | EA12: 2 | EB12: 1 | EE12: 6 | EF12: 13 | EG12: DELHI | EH12: 7 | EI12: 8 | EJ12: 15 | EK12: =BQ12+BM12+AV12+AL12+W12+R12+N12+BI12+BX12+CH12+CT12+DD12+EJ12+EF12+DQ12 -> 172 | EL12: =15/15*100 -> 100
A13: 8 | B13: GOA | C13: 3 | D13: 1 | G13: 4 | H13: 4 | I13: 1 | M13: 5 | N13: 9 | BN13: GOA | BO13: 5 | BP13: 1 | BQ13: 6 | EG13: GOA | EH13: 7 | EI13: 8 | EJ13: 15 | EK13: =BQ13+BM13+AV13+AL13+W13+R13+N13+BI13+EJ13 -> 30 | EL13: =3/14*100 -> 21
B14: Grand Total | C14: 47 | D14: 17 | E14: 5 | F14: 1 | G14: 70 | H14: 63 | I14: 18 | J14: 1 | K14: 9 | L14: 9 | M14: 100 | N14: 170 | O14: 137 | P14: 53 | Q14: 31 | R14: 221 | S14: 116 | T14: 42 | U14: 1 | V14: 48 | W14: 207 | AL14: 98 | AM14: Grand Total | AN14: 51 | AO14: 22 | AP14: 10 | AQ14: 83 | AR14: 71 | AS14: 29 | AT14: 12 | AU14: 112 | AV14: 195 | AW14: Grand Total | AX14: 63 | AY14: 76 | AZ14: 139 | BA14: 31 | BB14: 35 | BC14: 66 | BD14: 1 | BE14: 1 | BF14: 13 | BG14: 14 | BH14: 27 | BI14: 233 | BJ14: Grand Total | BK14: 39 | BL14: 21 | BM14: 60 | BN14: Grand Total | BO14: 100 | BP14: 20 | BQ14: 120 | BR14: 29 | BS14: 15 | BT14: 44 | BU14: 53 | BV14: 31 | BW14: 84 | BX14: 128 | BY14: 51 | BZ14: 18 | CA14: 1 | CB14: 30 | CC14: 100 | CD14: 72 | CE14: 25 | CF14: 44 | CG14: 141 | CH14: 241 | CI14: Grand Total | CJ14: 5 | CK14: 2 | CL14: 6 | CM14: 1 | CN14: 14 | CO14: 17 | CP14: 2 | CQ14: 8 | CR14: 6 | CS14: 33 | CT14: 47 | CU14: Grand Total | CV14: 5 | CW14: 5 | CX14: 3 | CY14: 13 | CZ14: 6 | DA14: 6 | DB14: 6 | DC14: 18 | DD14: 31 | DQ14: =SUM(DQ1:DQ13) -> 46 | EF14: =SUM(EF1:EF13) -> 34 | EJ14: =SUM(EJ1:EJ13) -> 85 | EK14: =BQ14+BM14+AV14+AL14+W14+R14+N14+BI14+BX14+CH14+CT14+DD14+EJ14+EF14+DQ14 -> 1916
A15: 9 | B15: GUJARAT | C15: 3 | D15: 1 | G15: 4 | H15: 4 | I15: 1 | M15: 5 | N15: 9 | O15: 10 | P15: 5 | Q15: 2 | R15: 17 | X15: GUJARAT | Y15: 2 | Z15: 2 | AC15: 1 | AE15: 5 | AF15: 3 | AG15: 2 | AI15: 1 | AK15: 6 | AL15: 11 | AM15: GUJARAT | AN15: 4 | AO15: 2 | AP15: 1 | AQ15: 7 | AR15: 5 | AS15: 2 | AT15: 1 | AU15: 8 | AV15: 15 | AW15: GUJARAT | AX15: 4 | AY15: 4 | AZ15: 8 | BA15: 2 | BB15: 2 | BC15: 4 | BF15: 1 | BG15: 1 | BH15: 2 | BI15: 14 | BJ15: GUJARAT | BK15: 4 | BL15: 2 | BM15: 6 | BN15: GUJARAT | BO15: 5 | BP15: 1 | BQ15: 6 | BR15: 1 | BS15: 1 | BT15: 2 | BU15: 3 | BV15: 2 | BW15: 5 | BX15: 7 | BY15: 6 | BZ15: 2 | CB15: 3 | CC15: 11 | CD15: 6 | CE15: 2 | CF15: 3 | CG15: 11 | CH15: 22 | CI15: GUJARAT | CJ15: 2 | CK15: 2 | CL15: 1 | CM15: 1 | CN15: 6 | CO15: 2 | CP15: 2 | CQ15: 1 | CR15: 1 | CS15: 6 | CT15: 12 | CU15: GUJARAT | CV15: 1 | CW15: 1 | CX15: 1 | CY15: 3 | CZ15: 1 | DA15: 1 | DB15: 1 | DC15: 3 | DD15: 6 | DE15: GUJARAT | DF15: 3 | DG15: 1 | DI15: 4 | DJ15: 3 | DK15: 1 | DN15: 4 | DQ15: 8 | DR15: GUJARAT | DS15: 5 | DT15: 2 | DU15: 2 | DX15: 9 | DY15: 5 | EA15: 2 | EB15: 2 | EE15: 9 | EF15: 18 | EG15: GUJARAT | EH15: 9 | EI15: 9 | EJ15: 18 | EK15: =BQ15+BM15+AV15+AL15+W15+R15+N15+BI15+BX15+CH15+CT15+DD15+EJ15+EF15+DQ15 -> 169 | EL15: =14/15*100 -> 93
A16: 11 | B16: HARYANA | C16: 4 | D16: 1 | G16: 5 | H16: 4 | I16: 1 | M16: 5 | N16: 10 | O16: 7 | P16: 2 | R16: 9 | S16: 12 | T16: 5 | V16: 4 | W16: 21 | X16: HARYANA | Y16: 1 | Z16: 1 | AE16: 2 | AF16: 2 | AG16: 1 | AJ16: 1 | AK16: 4 | AL16: 6 | AM16: HARYANA | AN16: 4 | AO16: 1 | AQ16: 5 | AR16: 4 | AS16: 2 | AT16: 1 | AU16: 7 | AV16: 12 | AW16: HARYANA | AX16: 4 | AY16: 4 | AZ16: 8 | BA16: 1 | BB16: 1 | BC16: 2 | BI16: 10 | BN16: HARYANA | BO16: 5 | BP16: 1 | BQ16: 6 | BR16: 1 | BT16: 1 | BU16: 1 | BV16: 2 | BW16: 3 | BX16: 4 | CD16: 6 | CE16: 2 | CF16: 3 | CG16: 11 | CH16: 11 | CI16: HARYANA | CO16: 2 | CQ16: 1 | CR16: 2 | CS16: 5 | CT16: 5 | DE16: HARYANA | DF16: 3 | DG16: 1 | DH16: 2 | DI16: 6 | DJ16: 5 | DK16: 1 | DN16: 6 | DQ16: 12 | EG16: HARYANA | EI16: 7 | EJ16: 7 | EK16: =BQ16+BM16+AV16+AL16+W16+R16+N16+BI16+BX16+CH16+CT16+EJ16+DQ16 -> 113 | EL16: =12/15*100 -> 80
A17: 12 | B17: HIMACHAL PRADESH | C17: 4 | D17: 1 | G17: 5 | H17: 4 | I17: 1 | M17: 5 | N17: 10 | O17: 8 | P17: 4 | Q17: 2 | R17: 14 | AM17: HIMACHAL PRADESH | AN17: 3 | AO17: 1 | AQ17: 4 | AR17: 4 | AS17: 2 | AU17: 6 | AV17: 10 | AW17: HIMACHAL PRADESH | AX17: 4 | AY17: 4 | AZ17: 8 | BA17: 2 | BB17: 2 | BC17: 4 | BF17: 1 | BG17: 1 | BH17: 2 | BI17: 14 | BJ17: HIMACHAL PRADESH | BK17: 3 | BL17: 2 | BM17: 5 | BN17: HIMACHAL PRADESH | BO17: 5 | BP17: 1 | BQ17: 6 | CU17: HIMACHAL PRADESH | CZ17: 1 | DA17: 1 | DB17: 1 | DC17: 3 | DD17: 3 | DE17: HIMACHAL PRADESH | DF17: 4 | DG17: 1 | DI17: 5 | DJ17: 5 | DK17: 1 | DN17: 6 | DQ17: 11 | DR17: HIMACHAL PRADESH | DZ17: 3 | EA17: 2 | EB17: 1 | EE17: 6 | EF17: 6 | EK17: =BQ17+BM17+AV17+AL17+W17+R17+N17+BI17+DD17+EF17+DQ17 -> 79 | EL17: =9/15*100 -> 60
A18: 14 | B18: JAMMU & KASHMIR | O18: 3 | P18: 1 | Q18: 1 | R18: 5 | S18: 3 | T18: 1 | V18: 1 | W18: 5 | AM18: KASHMIR | AN18: 3 | AO18: 2 | AP18: 1 | AQ18: 6 | AR18: 3 | AS18: 1 | AT18: 1 | AU18: 5 | AV18: 11 | AW18: JAMMU & KASHMIR | AY18: 4 | AZ18: 4 | BB18: 2 | BC18: 2 | BG18: 1 | BH18: 1 | BI18: 7 | BN18: KASHMIR | BO18: 5 | BP18: 1 | BQ18: 6 | EK18: =BQ18+BM18+AV18+AL18+W18+R18+N18+BI18 -> 34 | EL18: =5/11*100 -> 45
A19: 13 | B19: JHARKHAND | H19: 1 | I19: 1 | M19: 2 | N19: 2 | S19: 4 | T19: 1 | V19: 2 | W19: 7 | AW19: JHARKHAND | AX19: 4 | AY19: 4 | AZ19: 8 | BA19: 2 | BB19: 1 | BC19: 3 | BF19: 1 | BG19: 1 | BH19: 2 | BI19: 13 | BN19: JHARKHAND | BO19: 5 | BP19: 1 | BQ19: 6 | BS19: 1 | BT19: 1 | BU19: 1 | BV19: 1 | BW19: 2 | BX19: 3 | DE19: JHARKHAND | DF19: 3 | DG19: 1 | DI19: 4 | DJ19: 5 | DK19: 1 | DN19: 6 | DQ19: 10 | DR19: JHARKHAND | DY19: 3 | EA19: 2 | EC19: 1 | EE19: 6 | EF19: 6 | EG19: JHARKHAND | EH19: 7 | EI19: 8 | EJ19: 15 | EK19: =BQ19+BM19+AV19+AL19+W19+R19+N19+BI19+BX19+EJ19+EF19+DQ19 -> 62 | EL19: =8/14*100 -> 57
A20: 15 | B20: KARNATAKA | C20: 2 | D20: 1 | F20: 1 | G20: 4 | H20: 4 | I20: 1 | M20: 5 | N20: 9 | O20: 6 | P20: 2 | Q20: 2 | R20: 10 | S20: 8 | T20: 2 | V20: 6 | W20: 16 | X20: KARNATAKA | AF20: 2 | AG20: 1 | AK20: 3 | AL20: 3 | AM20: KARNATAKA | AN20: 1 | AO20: 1 | AP20: 1 | AQ20: 3 | AR20: 3 | AS20: 1 | AT20: 1 | AU20: 5 | AV20: 8 | AW20: KARNATAKA | AX20: 4 | AY20: 4 | AZ20: 8 | BA20: 1 | BB20: 1 | BC20: 2 | BI20: 10 | BR20: 5 | BS20: 1 | BT20: 6 | BU20: 3 | BV20: 1 | BW20: 4 | BX20: 10 | BY20: 5 | BZ20: 1 | CB20: 3 | CC20: 9 | CD20: 5 | CE20: 2 | CF20: 3 | CG20: 10 | CH20: 19 | CI20: KARNATAKA | CL20: 2 | CN20: 2 | CO20: 5 | CQ20: 1 | CR20: 1 | CS20: 7 | CT20: 9 | DE20: KARNATAKA | DF20: 5 | DG20: 1 | DI20: 6 | DJ20: 3 | DK20: 1 | DL20: 2 | DN20: 6 | DO20: 1 | DP20: 1 | DQ20: 13 | DR20: KARNATAKA | DS20: 3 | DT20: 2 | DV20: 1 | DX20: 6 | DY20: 4 | EA20: 2 | EB20: 2 | EE20: 8 | EF20: 14 | EG20: KARNATAKA | EH20: 6 | EI20: 6 | EJ20: 12 | EK20: =BQ20+BM20+AV20+AL20+W20+R20+N20+BI20+BX20+CH20+CT20+EJ20+EF20+DQ20 -> 133 | EL20: =12/14*100 -> 86
A21: 16 | B21: KERALA | C21: 3 | D21: 1 | G21: 4 | H21: 4 | I21: 1 | M21: 5 | N21: 9 | O21: 7 | P21: 3 | Q21: 2 | R21: 12 | S21: 8 | T21: 2 | V21: 4 | W21: 14 | X21: KERALA | Y21: 1 | Z21: 1 | AE21: 2 | AF21: 2 | AG21: 1 | AK21: 3 | AL21: 5 | AM21: KERALA | AN21: 3 | AO21: 1 | AP21: 1 | AQ21: 5 | AR21: 3 | AS21: 1 | AT21: 1 | AU21: 5 | AV21: 10 | AW21: KERALA | AX21: 2 | AY21: 2 | AZ21: 4 | BA21: 1 | BB21: 1 | BC21: 2 | BI21: 6 | BJ21: KERALA | BK21: 4 | BL21: 2 | BM21: 6 | BN21: KERALA | BO21: 5 | BP21: 1 | BQ21: 6 | BR21: 3 | BS21: 2 | BT21: 5 | BU21: 2 | BV21: 1 | BW21: 3 | BX21: 8 | BY21: 4 | BZ21: 1 | CB21: 3 | CC21: 8 | CD21: 5 | CE21: 1 | CF21: 3 | CG21: 9 | CH21: 17 | CU21: KERALA | CV21: 1 | CW21: 1 | CY21: 2 | DD21: 2 | DE21: KERALA | DF21: 4 | DG21: 1 | DI21: 5 | DJ21: 4 | DK21: 1 | DN21: 5 | DO21: 1 | DP21: 1 | DQ21: 11 | DR21: KERALA | DS21: 3 | DT21: 2 | DV21: 1 | DX21: 6 | DY21: 3 | EA21: 2 | EB21: 1 | EE21: 6 | EF21: 12 | EG21: KERALA | EH21: 8 | EI21: 7 | EJ21: 15 | EK21: =BQ21+BM21+AV21+AL21+W21+R21+N21+BI21+BX21+CH21+DD21+EJ21+EF21+DQ21 -> 133 | EL21: =14/14*100 -> 100
A22: 17 | B22: MADHYA PRADESH | C22: 2 | D22: 1 | G22: 3 | H22: 2 | I22: 1 | L22: 1 | M22: 4 | N22: 7 | O22: 6 | P22: 2 | Q22: 2 | R22: 10 | X22: MADHYA PRADESH | AB22: 1 | AD22: 7 | AE22: 8 | AH22: 4 | AJ22: 12 | AK22: 16 | AL22: 24 | AM22: MADHYA PRADESH | AR22: 3 | AS22: 1 | AU22: 4 | AV22: 4 | AW22: MADHYA PRADESH | AX22: 4 | AY22: 4 | AZ22: 8 | BA22: 2 | BB22: 2 | BC22: 4 | BI22: 12 | BJ22: MADHYA PRADESH | BK22: 4 | BL22: 2 | BM22: 6 | BN22: MADHYA PRADESH | BO22: 5 | BP22: 1 | BQ22: 6 | BR22: 3 | BS22: 1 | BT22: 4 | BU22: 4 | BV22: 3 | BW22: 7 | BX22: 11 | CI22: MADHYA PRADESH | CO22: 1 | CQ22: 1 | CS22: 2 | CT22: 2 | DE22: MADHYA PRADESH | DF22: 2 | DG22: 1 | DI22: 3 | DJ22: 2 | DK22: 1 | DN22: 3 | DQ22: 6 | DR22: MADHYA PRADESH | DW22: 1 | DX22: 1 | ED22: 3 | EE22: 3 | EF22: 4 | EG22: MADHYA PRADESH | EI22: 8 | EJ22: 8 | EK22: =BQ22+BM22+AV22+AL22+W22+R22+N22+BI22+BX22+CT22+EJ22+EF22+DQ22 -> 100 | EL22: =12/14*100 -> 86
A23: 18 | B23: MAHARASHTRA | C23: 2 | D23: 1 | G23: 3 | H23: 4 | I23: 1 | M23: 5 | N23: 8 | O23: 9 | P23: 3 | Q23: 2 | R23: 14 | S23: 12 | T23: 4 | U23: 1 | V23: 4 | W23: 21 | X23: MAHARASHTRA | AF23: 1 | AG23: 1 | AK23: 2 | AL23: 2 | AM23: MAHARASHTRA | AN23: 3 | AO23: 2 | AP23: 1 | AQ23: 6 | AR23: 5 | AS23: 3 | AT23: 1 | AU23: 9 | AV23: 15 | AW23: MAHARASHTRA | AX23: 4 | AY23: 4 | AZ23: 8 | BA23: 2 | BB23: 3 | BC23: 5 | BF23: 1 | BG23: 1 | BH23: 2 | BI23: 15 | BJ23: MAHARASHTRA | BK23: 4 | BL23: 2 | BM23: 6 | BN23: MAHARASHTRA | BO23: 5 | BP23: 1 | BQ23: 6 | BR23: 4 | BS23: 2 | BT23: 6 | BU23: 6 | BV23: 2 | BW23: 8 | BX23: 14 | BY23: 6 | BZ23: 2 | CB23: 3 | CC23: 11 | CD23: 6 | CE23: 3 | CF23: 3 | CG23: 12 | CH23: 23 | CU23: MAHARASHTRA | CV23: 1 | CW23: 1 | CX23: 1 | CY23: 3 | CZ23: 1 | DA23: 1 | DB23: 1 | DC23: 3 | DD23: 6 | DE23: MAHARASHTRA | DF23: 6 | DI23: 6 | DK23: 2 | DN23: 2 | DO23: 6 | DP23: 6 | DQ23: 14 | DR23: MAHARASHTRA | DS23: 5 | DT23: 2 | DU23: 1 | DV23: 2 | DX23: 10 | DY23: 5 | EA23: 2 | EB23: 2 | EE23: 9 | EF23: 19 | EG23: MAHARASHTRA | EH23: 9 | EI23: 9 | EJ23: 18 | EK23: =BQ23+BM23+AV23+AL23+W23+R23+N23+BI23+BX23+CH23+DD23+EJ23+EF23+DQ23 -> 181 | EL23: =14/15*100 -> 93
A24: 19 | B24: MANIPUR | EK24: =BQ24+BM24+AV24+AL24+W24+R24+N24+BI24 -> 0 | EL24: =0/11*100 -> 0
A25: 20 | B25: MEGHALAYA | EK25: =BQ25+BM25+AV25+AL25+W25+R25+N25+BI25 -> 0 | EL25: =0/11*100 -> 0
A26: 21 | B26: MIZORAM | EK26: =BQ26+BM26+AV26+AL26+W26+R26+N26+BI26 -> 0 | EL26: =0/11*100 -> 0
A27: 22 | B27: NAGALAND | EK27: =BQ27+BM27+AV27+AL27+W27+R27+N27+BI27 -> 0 | EL27: =0/11*100 -> 0
A28: 23 | B28: ODISHA | C28: 2 | D28: 1 | G28: 3 | H28: 2 | M28: 2 | N28: 5 | O28: 4 | P28: 2 | R28: 6 | S28: 4 | T28: 2 | V28: 2 | W28: 8 | BJ28: ODISHA | BK28: 2 | BL28: 1 | BM28: 3 | BN28: ODISHA | BO28: 5 | BP28: 1 | BQ28: 6 | BR28: 1 | BS28: 1 | BT28: 2 | BU28: 2 | BV28: 1 | BW28: 3 | BX28: 5 | BY28: 4 | BZ28: 1 | CB28: 3 | CC28: 8 | CD28: 5 | CE28: 2 | CF28: 3 | CG28: 10 | CH28: 18 | DE28: ODISHA | DF28: 2 | DG28: 1 | DI28: 3 | DJ28: 4 | DK28: 1 | DN28: 5 | DQ28: 8 | DR28: ODISHA | DS28: 10 | DT28: 4 | DU28: 3 | DV28: 1 | DW28: 0 | DX28: 18 | DY28: 9 | DZ28: 0 | EA28: 4 | EB28: 3 | EC28: 0 | ED28: 0 | EE28: 16 | EF28: 34 | EG28: ODISHA | EH28: 9 | EI28: 10 | EJ28: 19 | EK28: =BQ28+BM28+AV28+AL28+W28+R28+N28+BI28+BX28+CH28+EJ28+EF28+DQ28 -> 112 | EL28: =10/14*100 -> 71
A29: 24 | B29: PONDICHERRY | H29: 1 | I29: 1 | M29: 2 | N29: 2 | O29: 6 | P29: 2 | Q29: 2 | R29: 10 | S29: 4 | T29: 1 | V29: 2 | W29: 7 | AM29: PONDICHERRY | AN29: 3 | AO29: 1 | AQ29: 4 | AR29: 3 | AS29: 1 | AT29: 1 | AU29: 5 | AV29: 9 | AW29: PONDICHERRY | AX29: 3 | AY29: 3 | AZ29: 6 | BA29: 1 | BB29: 1 | BC29: 2 | BF29: 1 | BG29: 1 | BH29: 2 | BI29: 10 | BJ29: PONDICHERRY | BK29: 4 | BL29: 2 | BM29: 6 | BN29: PONDICHERRY | BO29: 5 | BP29: 1 | BQ29: 6 | DE29: PONDICHERRY | DJ29: 2 | DK29: 1 | DN29: 3 | DQ29: 3 | DR29: PONDICHERRY | DS29: 3 | DT29: 2 | DV29: 1 | DX29: 6 | DY29: 3 | EA29: 2 | EB29: 1 | EE29: 6 | EF29: 12 | EG29: PONDICHERRY | EI29: 7 | EJ29: 7 | EK29: =BQ29+BM29+AV29+AL29+W29+R29+N29+BI29+EJ29+EF29+DQ29 -> 72 | EL29: =11/14*100 -> 79
A30: 25 | B30: PUNJAB | C30: 4 | D30: 1 | E30: 4 | G30: 9 | H30: 4 | I30: 1 | K30: 9 | L30: 6 | M30: 20 | N30: 29 | O30: 9 | P30: 4 | Q30: 2 | R30: 15 | S30: 10 | T30: 5 | V30: 4 | W30: 19 | X30: PUNJAB | Y30: 3 | Z30: 1 | AE30: 4 | AF30: 3 | AG30: 1 | AK30: 4 | AL30: 8 | AM30: PUNJAB | AN30: 3 | AO30: 2 | AP30: 1 | AQ30: 6 | AR30: 4 | AS30: 1 | AT30: 1 | AU30: 6 | AV30: 12 | AW30: PUNJAB | AX30: 3 | AY30: 4 | AZ30: 7 | BA30: 3 | BB30: 2 | BC30: 5 | BF30: 1 | BG30: 1 | BH30: 2 | BI30: 14 | BJ30: PUNJAB | BK30: 4 | BL30: 2 | BM30: 6 | BN30: PUNJAB | BO30: 5 | BP30: 1 | BQ30: 6 | BR30: 1 | BT30: 1 | BU30: 4 | BV30: 3 | BW30: 7 | BX30: 8 | BY30: 5 | BZ30: 2 | CB30: 3 | CC30: 10 | CD30: 5 | CE30: 2 | CF30: 3 | CG30: 10 | CH30: 20 | CI30: PUNJAB | CJ30: 1 | CL30: 1 | CN30: 2 | CO30: 1 | CQ30: 1 | CS30: 2 | CT30: 4 | CU30: PUNJAB | CV30: 1 | CW30: 1 | CY30: 2 | CZ30: 1 | DA30: 1 | DB30: 1 | DC30: 3 | DD30: 5 | DE30: PUNJAB | DF30: 4 | DG30: 1 | DI30: 5 | DJ30: 4 | DK30: 1 | DM30: 1 | DN30: 6 | DQ30: 11 | DR30: PUNJAB | DS30: 4 | DT30: 2 | DU30: 2 | DX30: 8 | DY30: 5 | EA30: 2 | EB30: 2 | EE30: 9 | EF30: 17 | EG30: PUNJAB | EH30: 8 | EI30: 9 | EJ30: 17 | EK30: =BQ30+BM30+AV30+AL30+W30+R30+N30+BI30+BX30+CH30+CT30+DD30+EJ30+EF30+DQ30 -> 191 | EL30: =15/15*100 -> 100
A31: 26 | B31: RAJASTHAN | C31: 4 | D31: 1 | G31: 5 | H31: 4 | I31: 1 | M31: 5 | N31: 10 | O31: 10 | P31: 4 | Q31: 2 | R31: 16 | S31: 9 | T31: 4 | V31: 2 | W31: 15 | X31: RAJASTHAN | Y31: 2 | Z31: 1 | AE31: 3 | AF31: 2 | AG31: 1 | AI31: 1 | AK31: 4 | AL31: 7 | AM31: RAJASTHAN | AN31: 4 | AO31: 2 | AP31: 1 | AQ31: 7 | AR31: 4 | AS31: 2 | AT31: 1 | AU31: 7 | AV31: 14 | AW31: RAJASTHAN | AX31: 4 | AY31: 4 | AZ31: 8 | BA31: 2 | BB31: 2 | BC31: 4 | BD31: 1 | BE31: 1 | BF31: 1 | BG31: 1 | BH31: 2 | BI31: 15 | BN31: RAJASTHAN | BO31: 5 | BP31: 1 | BQ31: 6 | BR31: 1 | BT31: 1 | BU31: 4 | BV31: 2 | BW31: 6 | BX31: 7 | BY31: 6 | BZ31: 2 | CA31: 1 | CB31: 3 | CC31: 12 | CD31: 6 | CE31: 2 | CF31: 3 | CG31: 11 | CH31: 23 | CU31: RAJASTHAN | CZ31: 1 | DA31: 1 | DB31: 1 | DC31: 3 | DD31: 3 | DE31: RAJASTHAN | DF31: 5 | DG31: 1 | DI31: 6 | DJ31: 5 | DK31: 1 | DN31: 6 | DQ31: 12 | DR31: RAJASTHAN | DS31: 3 | DT31: 2 | DU31: 1 | DX31: 6 | DY31: 5 | EA31: 2 | EB31: 2 | EE31: 9 | EF31: 15 | EG31: RAJASTHAN | EH31: 9 | EI31: 9 | EJ31: 18 | EK31: =BQ31+BM31+AV31+AL31+W31+R31+N31+BI31+BX31+CH31+DD31+EJ31+EF31+DQ31 -> 161 | EL31: =13/15*100 -> 87
A32: 27 | B32: SIKKIM | EK32: =BQ32+BM32+AV32+AL32+W32+R32+N32+BI32 -> 0 | EL32: =0/11*100 -> 0
A33: 28 | B33: TAMILNADU | C33: 4 | D33: 1 | G33: 5 | H33: 4 | I33: 1 | J33: 1 | M33: 6 | N33: 11 | O33: 7 | P33: 2 | Q33: 1 | R33: 10 | S33: 8 | T33: 3 | V33: 3 | W33: 14 | X33: TAMIL NADU | AF33: 2 | AG33: 1 | AI33: 1 | AK33: 4 | AL33: 4 | AM33: TAMIL NADU | AN33: 3 | AO33: 2 | AP33: 1 | AQ33: 6 | AR33: 4 | AS33: 2 | AT33: 1 | AU33: 7 | AV33: 13 | AW33: TAMIL NADU | AX33: 4 | AY33: 4 | AZ33: 8 | BA33: 2 | BB33: 2 | BC33: 4 | BI33: 12 | BJ33: TAMIL NADU | BK33: 1 | BL33: 1 | BM33: 2 | BN33: TAMIL NADU | BO33: 5 | BP33: 1 | BQ33: 6 | BR33: 3 | BS33: 1 | BT33: 4 | BU33: 4 | BV33: 3 | BW33: 7 | BX33: 11 | BY33: 2 | BZ33: 1 | CC33: 3 | CD33: 4 | CE33: 1 | CF33: 2 | CG33: 7 | CH33: 10 | DE33: TAMIL NADU | DF33: 4 | DG33: 1 | DI33: 5 | DJ33: 5 | DK33: 1 | DN33: 6 | DQ33: 11 | DR33: TAMIL NADU | DS33: 3 | DT33: 2 | DU33: 1 | DX33: 6 | DY33: 3 | EA33: 2 | EB33: 2 | EE33: 7 | EF33: 13 | EG33: TAMIL NADU | EH33: 7 | EI33: 8 | EJ33: 15 | EK33: =BQ33+BM33+AV33+AL33+W33+R33+N33+BI33+BX33+CH33+EJ33+EF33+DQ33 -> 132 | EL33: =13/14*100 -> 93
A34: 31 | B34: TELANGANA | E34: 1 | G34: 1 | N34: 1 | S34: 5 | T34: 2 | V34: 2 | W34: 9 | X34: TELANGANA | AA34: 1 | AE34: 1 | AF34: 2 | AG34: 1 | AJ34: 1 | AK34: 4 | AL34: 5 | AW34: TELANGANA | AY34: 2 | AZ34: 2 | BB34: 1 | BC34: 1 | BI34: 3 | BU34: 3 | BV34: 2 | BW34: 5 | BX34: 5 | EK34: =BQ34+BM34+AV34+AL34+W34+R34+N34+BI34+BX34 -> 23 | EL34: =5/11*100 -> 45
A35: 32 | B35: TRIPURA | EK35: =BQ35+BM35+AV35+AL35+W35+R35+N35+BI35 -> 0 | EL35: =0/11*100 -> 0
A36: 29 | B36: UTTAR PRADESH | C36: 1 | D36: 1 | G36: 2 | H36: 3 | I36: 1 | M36: 4 | N36: 6 | O36: 8 | P36: 4 | Q36: 2 | X36: UTTAR PRADESH | AF36: 3 | AG36: 2 | AI36: 1 | AK36: 6 | AL36: 6 | AM36: UTTAR PRADESH | AN36: 3 | AO36: 1 | AP36: 1 | AQ36: 5 | AR36: 4 | AS36: 2 | AT36: 1 | AU36: 7 | AV36: 12 | AW36: UTTAR PRADESH | AX36: 3 | AY36: 3 | AZ36: 6 | BA36: 2 | BB36: 1 | BC36: 3 | BF36: 1 | BG36: 1 | BH36: 2 | BI36: 11 | BN36: UTTAR PRADESH | BO36: 5 | BP36: 1 | BQ36: 6 | BR36: 2 | BS36: 1 | BT36: 3 | BU36: 4 | BV36: 2 | BW36: 6 | BX36: 9 | BY36: 5 | BZ36: 2 | CB36: 3 | CC36: 10 | CD36: 4 | CE36: 1 | CF36: 3 | CG36: 8 | CH36: 18 | CI36: UTTAR PRADESH | CJ36: 1 | CL36: 1 | CN36: 2 | CT36: 2 | DE36: UTTAR PRADESH | DF36: 4 | DG36: 1 | DI36: 5 | DJ36: 4 | DK36: 1 | DM36: 1 | DN36: 6 | DQ36: 11 | DR36: UTTAR PRADESH | DY36: 4 | EA36: 2 | EB36: 2 | EC36: 1 | EE36: 9 | EF36: 9 | EG36: UTTAR PRADESH | EH36: 1 | EI36: 8 | EJ36: 9 | EK36: =BQ36+BM36+AV36+AL36+W36+R36+N36+BI36+BX36+CH36+CT36+EJ36+EF36+DQ36 -> 99 | EL36: =11/14*100 -> 79
A37: 30 | B37: UTTARAKHAND | C37: 1 | D37: 1 | G37: 2 | H37: 2 | I37: 1 | M37: 3 | N37: 5 | R37: 14 | AW37: UTTARAKHAND | AX37: 2 | AY37: 2 | AZ37: 4 | BA37: 1 | BB37: 1 | BC37: 2 | BG37: 1 | BH37: 1 | BI37: 7 | CD37: 4 | CE37: 1 | CF37: 3 | CG37: 8 | CH37: 8 | DE37: UTTARAKHAND | DJ37: 5 | DK37: 2 | DN37: 7 | DQ37: 7 | EG37: UTTARAKHAND | EI37: 7 | EJ37: 7 | EK37: =BQ37+BM37+AV37+AL37+W37+R37+N37+BI37+CH37+EJ37+DQ37 -> 48 | EL37: =6/14*100 -> 43
A38: 33 | B38: WEST BENGAL | O38: 6 | P38: 2 | Q38: 1 | R38: 9 | S38: 8 | T38: 2 | V38: 4 | W38: 14 | AM38: WEST BENGAL | AR38: 4 | AS38: 1 | AU38: 5 | AV38: 5 | AW38: WEST BENGAL | AX38: 2 | AY38: 3 | AZ38: 5 | BA38: 1 | BB38: 1 | BC38: 2 | BF38: 1 | BH38: 1 | BI38: 8 | BN38: WEST BENGAL | BO38: 5 | BP38: 1 | BQ38: 6 | CD38: 4 | CE38: 1 | CF38: 3 | CG38: 8 | CH38: 8 | CI38: WEST BENGAL | CO38: 1 | CQ38: 1 | CS38: 2 | CT38: 2 | EG38: WEST BENGAL | EH38: 8 | EI38: 9 | EJ38: 17 | EK38: =BQ38+BM38+AV38+AL38+W38+R38+N38+BI38+CH38+CT38+EJ38 -> 69 | EL38: =8/14*100 -> 57
X39: Grand Total | Y39: 12 | Z39: 7 | AA39: 1 | AB39: 1 | AC39: 2 | AD39: 7 | AE39: 30 | AF39: 26 | AG39: 15 | AH39: 4 | AI39: 6 | AJ39: 17 | AK39: 68

Sheet FB 17-21 Nov 25
B3: Count of AGE GROUP | C3: Column Labels
A4: Sr. | B4: States Names | C4: FEMALE | D4: MALE | E4: Grand Total | F4: Remarks
A5: 1 | B5: ANDHRA PRADESH | C5: 7 | D5: 7 | E5: 14 | F5: confirmed
A6: 2 | B6: ASSAM | D6: 9 | E6: 9 | F6: confirmed
A7: 3 | B7: BIHAR | D7: 10 | E7: 10 | F7: confirmed
A8: 4 | B8: CHANDIGARH | D8: 7 | E8: 7 | F8: confirmed
A9: 5 | B9: CHATTISGRAH | C9: 8 | D9: 7 | E9: 15 | F9: Not confirmed
A10: 6 | B10: DELHI | C10: 7 | D10: 8 | E10: 15 | F10: confirmed
A11: 7 | B11: GOA | C11: 7 | D11: 8 | E11: 15 | F11: Only male team confirmation received
A12: 8 | B12: GUJARAT | C12: 9 | D12: 9 | E12: 18 | F12: confirmed
A13: 9 | B13: HARYANA | D13: 7 | E13: 7 | F13: confirmed
A14: 10 | B14: HIMACHAL PRADESH | D14: 10 | E14: 10 | F14: Not confirmed
A15: 11 | B15: JHARKHAND | C15: 7 | D15: 8 | E15: 15 | F15: confirmed
A16: 12 | B16: KARNATAKA | C16: 6 | D16: 6 | E16: 12 | F16: confirmed
A17: 13 | B17: KERALA | C17: 8 | D17: 7 | E17: 15 | F17: confirmed
A18: 14 | B18: MADHYA PRADESH | D18: 8 | E18: 8 | F18: Not confirmed
A19: 15 | B19: MAHARASHTRA | C19: 9 | D19: 9 | E19: 18 | F19: confirmed
A20: 16 | B20: MIZORAM | D20: 9 | E20: 9 | F20: confirmed
A21: 17 | B21: ODISHA | C21: 9 | D21: 10 | E21: 19 | F21: confirmed
A22: 18 | B22: PONDICHERRY | D22: 7 | E22: 7 | F22: confirmed
A23: 19 | B23: PUNJAB | C23: 8 | D23: 9 | E23: 17 | F23: confirmed
A24: 20 | B24: RAJASTHAN | C24: 9 | D24: 9 | E24: 18 | F24: confirmed
A25: 21 | B25: TAMIL NADU | C25: 7 | D25: 8 | E25: 15 | F25: confirmed
A26: 22 | B26: UTTAR PRADESH | C26: 1 | D26: 8 | E26: 9 | F26: confirmed
A27: 23 | B27: UTTARAKHAND | D27: 7 | E27: 7 | F27: confirmed
A28: 24 | B28: WEST BENGAL | C28: 8 | D28: 9 | E28: 17 | F28: confirmed
B29: Grand Total | C29: 110 | D29: 196 | E29: 306

Sheet BB 23-27 Sep
B1: National Championship Basketball
B2: 23-27 Sep 25 Odisha
B3: Count of NAME | C3: Column Labels
C4: FEMALE | H4: FEMALE Total | I4: MALE | O4: MALE Total | P4: Grand Total
A5: Sr No | B5: Row Labels | C5: ATHLETE | D5: ATHLETE/PARTNER | E5: COACH | F5: COACH/ESCORT | G5: SUPPORT STAFF | I5: ATHLETE | J5: ATHLETE | K5: ATHLETE/PARTNER | L5: COACH | M5: COACH/ESCORT | N5: SUPPORT STAFF
B6: ANDHRA PRADESH | I6: 4 | K6: 2 | L6: 1 | O6: 7 | P6: 7
B7: CHANDIGRAH | I7: 3 | K7: 2 | M7: 1 | O7: 6 | P7: 6
B8: CHHATTISGRAH | I8: 1 | J8: 3 | K8: 2 | L8: 2 | O8: 8 | P8: 8
B9: DELHI | C9: 3 | D9: 2 | E9: 1 | G9: 1 | H9: 7 | I9: 3 | K9: 2 | L9: 1 | O9: 6 | P9: 13
B10: GUJARAT | C10: 5 | D10: 2 | E10: 2 | H10: 9 | I10: 5 | K10: 2 | L10: 2 | O10: 9 | P10: 18
B11: HIMACHAL PRADESH | J11: 3 | K11: 2 | L11: 1 | O11: 6 | P11: 6
B12: JHARKHAND | I12: 3 | K12: 2 | M12: 1 | O12: 6 | P12: 6
B13: KARNATAKA | C13: 3 | D13: 2 | F13: 1 | H13: 6 | I13: 4 | K13: 2 | L13: 2 | O13: 8 | P13: 14
B14: KERALA | C14: 3 | D14: 2 | F14: 1 | H14: 6 | I14: 3 | K14: 2 | L14: 1 | O14: 6 | P14: 12
B15: MADHYA PRADESH | G15: 1 | H15: 1 | N15: 3 | O15: 3 | P15: 4
B16: MAHARASHTRA | C16: 5 | D16: 2 | E16: 1 | F16: 2 | H16: 10 | I16: 5 | K16: 2 | L16: 2 | O16: 9 | P16: 19
B17: ODISHA | C17: 10 | D17: 4 | E17: 3 | F17: 1 | G17: 0 | H17: 18 | I17: 9 | J17: 0 | K17: 4 | L17: 3 | M17: 0 | N17: 0 | O17: 16 | P17: 34
B18: PONDICHERRY | C18: 3 | D18: 2 | F18: 1 | H18: 6 | I18: 3 | K18: 2 | L18: 1 | O18: 6 | P18: 12
B19: PUNJAB | C19: 4 | D19: 2 | E19: 2 | H19: 8 | I19: 5 | K19: 2 | L19: 2 | O19: 9 | P19: 17
B20: RAJASTHAN | C20: 3 | D20: 2 | E20: 1 | H20: 6 | I20: 5 | K20: 2 | L20: 2 | O20: 9 | P20: 15
B21: TAMIL NADU | C21: 3 | D21: 2 | E21: 1 | H21: 6 | I21: 3 | K21: 2 | L21: 2 | O21: 7 | P21: 13
B22: UTTAR PRADESH | I22: 4 | K22: 2 | L22: 2 | M22: 1 | O22: 9 | P22: 9
B23: Grand Total | C23: 42 | D23: 22 | E23: 11 | F23: 6 | G23: 2 | H23: 83 | I23: 60 | J23: 6 | K23: 34 | L23: 24 | M23: 3 | N23: 3 | O23: 130 | P23: 213

Sheet PL Sep 25
B1: National Championship Powerlifting
B2: 23-27 Sep 2025 New Delhi
B3: Count of NAME | C3: Column Labels
C4: FEMALE | F4: FEMALE Total | G4: MALE | K4: MALE Total | L4: MALE | M4: MALE Total | N4: Grand Total
A5: Sr No | B5: Row Labels | C5: ATHLETE | D5: COACH | E5: ESCORT | G5: ATHLETE | H5: COACH | I5: COACH/ESCORT | J5: ESCORT | L5: ATHLETE
A6: 1 | B6: ANDHRA PRADESH | C6: 2 | D6: 1 | F6: 3 | G6: 5 | H6: 1 | K6: 6 | N6: 9
A7: 2 | B7: ASSAM | G7: 2 | H7: 1 | K7: 3 | N7: 3
A8: 3 | B8: BIHAR | G8: 6 | H8: 1 | K8: 7 | N8: 7
A9: 4 | B9: CHANDIGARH | G9: 3 | H9: 1 | K9: 4 | N9: 4
A10: 5 | B10: CHATTISGARH | G10: 3 | H10: 1 | K10: 4 | N10: 4
A11: 6 | B11: DELHI | C11: 5 | D11: 2 | F11: 7 | G11: 10 | H11: 2 | K11: 12 | N11: 19
A12: 7 | B12: GUJARAT | C12: 3 | D12: 1 | F12: 4 | G12: 3 | H12: 1 | K12: 4 | N12: 8
A13: 8 | B13: HARYANA | C13: 3 | D13: 1 | E13: 2 | F13: 6 | G13: 5 | H13: 1 | K13: 6 | N13: 12
A14: 9 | B14: HIMACHAL PRADESH | C14: 4 | D14: 1 | F14: 5 | G14: 5 | H14: 1 | K14: 6 | N14: 11
A15: 10 | B15: JHARKHAND | C15: 3 | D15: 1 | F15: 4 | G15: 5 | H15: 1 | K15: 6 | N15: 10
A16: 11 | B16: KARNATAKA | C16: 5 | D16: 1 | F16: 6 | G16: 3 | H16: 1 | I16: 2 | K16: 6 | L16: 1 | M16: 1 | N16: 13
A17: 12 | B17: KERALA | C17: 4 | D17: 1 | F17: 5 | G17: 4 | H17: 1 | K17: 5 | L17: 1 | M17: 1 | N17: 11
A18: 13 | B18: MADHYA PRADESH | C18: 2 | D18: 1 | F18: 3 | G18: 2 | H18: 1 | K18: 3 | N18: 6
A19: 14 | B19: MAHARASHTRA | C19: 6 | F19: 6 | H19: 2 | K19: 2 | L19: 6 | M19: 6 | N19: 14
A20: 15 | B20: ODISHA | C20: 2 | D20: 1 | F20: 3 | G20: 4 | H20: 1 | K20: 5 | N20: 8
A21: 16 | B21: PONDICHERRY | G21: 2 | H21: 1 | K21: 3 | N21: 3
A22: 17 | B22: PUNJAB | C22: 4 | D22: 1 | F22: 5 | G22: 4 | H22: 1 | J22: 1 | K22: 6 | N22: 11
A23: 18 | B23: RAJASTHAN | C23: 5 | D23: 1 | F23: 6 | G23: 5 | H23: 1 | K23: 6 | N23: 12
A24: 19 | B24: TAMIL NADU | C24: 4 | D24: 1 | F24: 5 | G24: 5 | H24: 1 | K24: 6 | N24: 11
A25: 20 | B25: UTTAR PRADESH | C25: 4 | D25: 1 | F25: 5 | G25: 4 | H25: 1 | J25: 1 | K25: 6 | N25: 11
A26: 21 | B26: UTTARAKHAND | G26: 5 | H26: 2 | K26: 7 | N26: 7
B27: Grand Total | C27: 56 | D27: 15 | E27: 2 | F27: 73 | G27: 85 | H27: 24 | I27: 2 | J27: 2 | K27: 113 | L27: 8 | M27: 8 | N27: 194

Sheet ST BB 3X3
C1: Selection Trials Basketball 3X3
C2: Gujarat 18-20 Sep 2025
C3: Count of Name of Camper | D3: Column Labels
D4: FEMALE | G4: FEMALE Total | H4: MALE | K4: MALE Total | L4: Grand Total
B5: Sr No | C5: State | D5: ATHLETE | E5: COACH | F5: PARTNER | G5: FEMALE Total | H5: ATHLETE | I5: COACH | J5: PARTNER | K5: MALE Total | L5: Grand Total
B6: 1 | C6: DELHI | D6: 1 | E6: 1 | F6: 1 | G6: 3 | H6: 1 | I6: 1 | J6: 1 | K6: 3 | L6: 6
B7: 2 | C7: GUJARAT | D7: 1 | E7: 1 | F7: 1 | G7: 3 | H7: 1 | I7: 1 | J7: 1 | K7: 3 | L7: 6
B8: 3 | C8: HIMACHAL PRADESH | H8: 1 | I8: 1 | J8: 1 | K8: 3 | L8: 3
B9: 4 | C9: KERALA | D9: 1 | E9: 1 | G9: 2 | L9: 2
B10: 5 | C10: MAHARASHTRA | D10: 1 | E10: 1 | F10: 1 | G10: 3 | H10: 1 | I10: 1 | J10: 1 | K10: 3 | L10: 6
B11: 6 | C11: PUNJAB | D11: 1 | E11: 1 | G11: 2 | H11: 1 | I11: 1 | J11: 1 | K11: 3 | L11: 5
B12: 7 | C12: RAJASTHAN | H12: 1 | I12: 1 | J12: 1 | K12: 3 | L12: 3
B13: Grand Total | C13: Grand Total | D13: 5 | E13: 5 | F13: 3 | G13: 13 | H13: 6 | I13: 6 | J13: 6 | K13: 18 | L13: 31

Sheet NC Golf
B1: National Championship Golf
B2: 3-7 Sep 2025 Gurugram Haryana
B3: Count of Name | C3: Column Labels
C4: FEMALE | G4: FEMALE Total | H4: MALE | L4: MALE Total | M4: Grand Total
A5: SR NO | B5: Row Labels | C5: ATHLETE | D5: ATHLETE | E5: COACH | F5: PARTNER | G5: FEMALE Total | H5: ATHLETE | I5: ATHLETE | J5: COACH | K5: PARTNER | L5: MALE Total | M5: Grand Total
A6: 1 | B6: DELHI | C6: 1 | E6: 1 | G6: 2 | H6: 5 | J6: 2 | K6: 2 | L6: 9 | M6: 11
A7: 2 | B7: GUJARAT | C7: 2 | D7: 2 | E7: 1 | F7: 1 | G7: 6 | H7: 2 | I7: 2 | J7: 1 | K7: 1 | L7: 6 | M7: 12
A8: 3 | B8: HARYANA | H8: 2 | J8: 1 | K8: 2 | L8: 5 | M8: 5
A9: 4 | B9: KARNATAKA | E9: 2 | G9: 2 | H9: 5 | J9: 1 | K9: 1 | L9: 7 | M9: 9
A10: 5 | B10: MADHYA PRADESH | H10: 1 | J10: 1 | L10: 2 | M10: 2
A11: 6 | B11: PUNJAB | C11: 1 | E11: 1 | G11: 2 | H11: 1 | J11: 1 | L11: 2 | M11: 4
A12: 7 | B12: UTTAR PRADESH | C12: 1 | E12: 1 | G12: 2 | M12: 2
A13: 8 | B13: WEST BENGAL | H13: 1 | J13: 1 | L13: 2 | M13: 2
A14: Grand Total | B14: Grand Total | C14: 5 | D14: 2 | E14: 6 | F14: 1 | G14: 14 | H14: 17 | I14: 2 | J14: 8 | K14: 6 | L14: 33 | M14: 47

Sheet NC HB
B1: National Championship Handball | I1: as on 3 Sep 25
B2: Rajasthan 02-06 Sep 2025
B3: Count of Name | C3: Column Labels
C4: FEMALE | G4: FEMALE Total | H4: MALE | K4: MALE Total | L4: Grand Total
A5: SR NO | B5: Row Labels | C5: ATHLETE | D5: COACH | E5: ESCORT | F5: PARTNER | H5: ATHLETE | I5: COACH | J5: PARTNER | K5: MALE Total | L5: Grand Total
A6: 1 | B6: ANDHRA PRADESH | C6: 4 | D6: 2 | F6: 3 | G6: 9 | H6: 4 | I6: 2 | J6: 3 | K6: 9 | L6: 18
A7: 2 | B7: BIHAR | H7: 4 | I7: 1 | J7: 3 | K7: 8 | L7: 8
A8: 3 | B8: DELHI | C8: 4 | D8: 2 | F8: 3 | G8: 9 | H8: 4 | I8: 2 | J8: 3 | K8: 9 | L8: 18
A9: 4 | B9: GUJARAT | C9: 6 | D9: 2 | F9: 3 | G9: 11 | H9: 6 | I9: 2 | J9: 3 | K9: 11 | L9: 22
A10: 5 | B10: HARYANA | H10: 6 | I10: 2 | J10: 3 | K10: 11 | L10: 11
A11: 6 | B11: KARNATAKA | C11: 5 | D11: 1 | F11: 3 | G11: 9 | H11: 5 | I11: 2 | J11: 3 | K11: 10 | L11: 19
A12: 7 | B12: KERALA | C12: 4 | D12: 1 | F12: 3 | G12: 8 | H12: 5 | I12: 1 | J12: 3 | K12: 9 | L12: 17
A13: 8 | B13: MAHARASHTRA | C13: 6 | D13: 2 | F13: 3 | G13: 11 | H13: 6 | I13: 3 | J13: 3 | K13: 12 | L13: 23
A14: 9 | B14: ODISHA | C14: 4 | D14: 1 | F14: 3 | G14: 8 | H14: 5 | I14: 2 | J14: 3 | K14: 10 | L14: 18
A15: 10 | B15: PUNJAB | C15: 5 | D15: 2 | F15: 3 | G15: 10 | H15: 5 | I15: 2 | J15: 3 | K15: 10 | L15: 20
A16: 11 | B16: RAJASTHAN | C16: 6 | D16: 2 | E16: 1 | F16: 3 | G16: 12 | H16: 6 | I16: 2 | J16: 3 | K16: 11 | L16: 23
A17: 12 | B17: TAMIL NADU | C17: 2 | D17: 1 | G17: 3 | H17: 4 | I17: 1 | J17: 2 | K17: 7 | L17: 10
A18: 13 | B18: UTTAR PRADESH | C18: 5 | D18: 2 | F18: 3 | G18: 10 | H18: 4 | I18: 1 | J18: 3 | K18: 8 | L18: 18
A19: 14 | B19: UTTARAKHAND | H19: 4 | I19: 1 | J19: 3 | K19: 8 | L19: 8
A20: 15 | B20: WEST BENGAL | H20: 4 | I20: 1 | J20: 3 | K20: 8 | L20: 8
B21: Grand Total | C21: 51 | D21: 18 | E21: 1 | F21: 30 | G21: 100 | H21: 72 | I21: 25 | J21: 44 | K21: 141 | L21: 241

Sheet NC 12 June 25
A1: Sr. No | B1: To complete | C1: Sport | D1: Quota per State | E1: Format | F1: State offered to host | G1: Tentative Dates
A2: 1 | B2: Dec 24 to Mar 2025 | C2: Roller-skating | D2: 3 M+3 F ATH, 1M+1F CO=08 | E2: Traditional | F2: Punjab | G2: March 29-02 Apr 2025
A3: 2 | B3: June 25 to Dec 2025 | C3: Badminton | D3: 4 M+4 F ATH, 1M+1F CO=10 | E3: Traditional & Unified | F3: Gujarat | G3: June 15-19, 2025
A4: 3 | B4: June 25 to Dec 2025 | C4: Volleyball | D4: 6 M+6 F ATH, 1M+1F CO=14 | E4: Unified | F4: Gujarat | G4: June 15-19, 2025
A5: 4 | B5: June 25 to Dec 2025 | C5: Tennis | D5: 2 M+2 F ATH, 1M +1F CO=06 | E5: Traditional & Unified | F5: Madhya Pradesh | G5: July 10-14, 2025
A6: 5 | B6: June 25 to Dec 2025 | C6: Table Tennis | D6: 3 M+3 F ATH, 1M+1F CO=08 | E6: Traditional & Unified | F6: Chandigarh | G6: July 14-18, 2025
A7: 6 | B7: June 25 to Dec 2025 | C7: Bocce | D7: 4 M+4 F ATH, 1M+1F CO=10 | E7: Traditional & Unified | F7: Chattisgarh | G7: July 24-28, 2025
A8: 7 | B8: June 25 to Dec 2025 | C8: Swimming | D8: 3 M+3 F ATH, 1M+1F CO=08 | E8: Traditional | F8: Maharashtra | G8: August 3-7, 2025
A9: 8 | B9: June 25 to Dec 2025 | C9: Football | D9: 6 M+6 F ATH, 1M+1F CO=14 | E9: Unified | F9: West Bengal | G9: Aug 22-26, 2025
A10: 9 | B10: June 25 to Dec 2025 | C10: Basketball | D10: 6 M+6 F ATH, 1M+1F CO=14 | E10: Unified | F10: TBD
A11: 10 | B11: Dec 24 to Mar 2025 | C11: Handball | D11: 7 M+7 F ATH, 1M+1F CO=16 | E11: Unified | F11: Rajasthan | G11: Sep 01-05, 2025
A12: 11 | B12: June 25 to Dec 2025 | C12: Golf | D12: 2 M+2 F ATH, 1M +1F CO=06 | E12: Traditional & Unified | F12: Haryana | G12: Sep 07-11, 2025
A13: 12 | B13: Dec 24 to Mar 2025 | C13: Futsal | D13: 6 M+6 F ATH, 1M+1F CO=14 | E13: Unified | F13: Pondicherry | G13: Sep 08-12, 2025
A14: 13 | B14: June 25 to Dec 2025 | C14: Powerlifting | D14: 4 M+4 F ATH, 1M+1F CO=10 | E14: Traditional | F14: Delhi | G14: Sep 23-27, 2025
A15: 14 | B15: June 25 to Dec 2025 | C15: Judo -on hold till Oct 25 as per Jay dt 2 July 25 meeting | D15: 2 M+2 F ATH, 1M +1F CO=06 | E15: Traditional | F15: Karnataka | G15: Oct 3-7, 2025 (25Sep- 29Sep)
A16: 15 | B16: June 25 to Dec 2025 | C16: Cycling | D16: 4 M+4 F ATH, 1M+1F CO=10 | E16: Traditional | F16: Jharkhand | G16: Nov 17-22, 2025
A17: 16 | B17: June 25 to Dec 2025 | C17: Hockey | E17: Traditional | F17: Madhya Pradesh | G17: (Dates to be confirmed)
A18: 17 | B18: Dec 24 to Mar 2025 | C18: Athletics | D18: 6 M+6 F ATH, 1M+1F CO=12 | E18: Traditional | F18: National Office | G18: Feb 2026 (Dates to be confirmed)
A19: 18 | B19: Dec 24 to Mar 2025 | C19: Softball | D19: 12 M+12 F ATH, 3M+3F CO=30 | E19: Unified | F19: Karnataka | G19: Jan 12-17, 2026
A20: 19 | B20: June 25 to Dec 2025 | C20: Bowling-on hold till Oct 25 as per Jay dt 2 July 25 meeting | D20: 4 M+4 F ATH, 1M+1F CO=10 | E20: Traditional & Unified | F20: Andhra Pradesh | G20: Sep 25 (Dates to be confirmed)
B21: Dec 24 to Mar 2025 | C21: Cricket | D21: 11 M+11 F ATH, 3M+3F CO=28 | E21: Unified | F21: Delhi/ TBD | G21: Sep 25 (Dates to be confirmed)
B22: Dec 24 to Mar 2025 | C22: Netball | D22: 9 F ATH + 2 CO=11 | E22: Unified | F22: Haryana | G22: Jun (Dates to be confirmed)
G25: 2025-01-17
G26: 2025-01-28
A27: 2025-04-07 | C27: Handball | E27: Haryana to Rajasthan | F27: DG, Raj, Jai Meeting | G27: 2025-04-07
F28: Softball dates Amrendra | G28: 2025-06-14

Sheet RS NC
A1: National Championship Roller Skating, Ludhiana, Punjab
A2: 29 March to 02 April 2025
B3: Count of NAME | D3: Column Labels
D4: FEMALE | H4: FEMALE Total | I4: MALE | N4: MALE Total | O4: Grand Total
A5: Sr. No | B5: State | C5: SG Report | D5: ATHLETE | E5: COACH | F5: VOLUNTEER | G5: RESOURCE TEAM | I5: ATHLETE | J5: COACH | K5: MANAGER | L5: VOLUNTEER | M5: RESOURCE TEAM
A6: 1 | B6: ANDHRA PRADESH | C6: YES | D6: 4 | E6: 1 | H6: 5 | I6: 4 | J6: 1 | N6: 5 | O6: 10
A7: 2 | B7: CHANDIGRAH | C7: YES | D7: 2 | E7: 1 | H7: 3 | I7: 4 | J7: 1 | M7: 1 | N7: 6 | O7: 9
A8: 3 | B8: DELHI | C8: YES | D8: 2 | E8: 1 | H8: 3 | I8: 4 | J8: 1 | M8: 1 | N8: 6 | O8: 9
A9: 4 | B9: GOA | C9: YES | D9: 3 | E9: 1 | H9: 4 | I9: 4 | J9: 1 | N9: 5 | O9: 9
A10: 5 | B10: GUJARAT | C10: NO | D10: 3 | E10: 1 | H10: 4 | I10: 4 | J10: 1 | N10: 5 | O10: 9
A11: 6 | B11: HARYANA | C11: YES | D11: 4 | E11: 1 | H11: 5 | I11: 4 | J11: 1 | N11: 5 | O11: 10
A12: 7 | B12: HIMACHAL PRADESH | C12: YES | D12: 4 | E12: 1 | H12: 5 | I12: 4 | J12: 1 | N12: 5 | O12: 10
A13: 8 | B13: JHARKHAND | C13: YES | I13: 1 | J13: 1 | N13: 2 | O13: 2
A14: 9 | B14: KARNATAKA | C14: NO | D14: 2 | E14: 1 | G14: 1 | H14: 4 | I14: 4 | J14: 1 | N14: 5 | O14: 9
A15: 10 | B15: KERALA | C15: YES | D15: 3 | E15: 1 | H15: 4 | I15: 4 | J15: 1 | N15: 5 | O15: 9
A16: 11 | B16: MADHYA PRADESH | C16: NO | D16: 2 | E16: 1 | H16: 3 | I16: 2 | J16: 1 | M16: 1 | N16: 4 | O16: 7
A17: 12 | B17: MAHARASHTRA | C17: YES | D17: 2 | E17: 1 | H17: 3 | I17: 4 | J17: 1 | N17: 5 | O17: 8
A18: 13 | B18: ODISHA | C18: YES | D18: 2 | E18: 1 | H18: 3 | I18: 2 | N18: 2 | O18: 5
A19: 14 | B19: PONDICHERRY | C19: YES | I19: 1 | J19: 1 | N19: 2 | O19: 2
A20: 15 | B20: PUNJAB | C20: YES | D20: 4 | E20: 1 | F20: 4 | H20: 9 | I20: 4 | J20: 1 | L20: 9 | M20: 6 | N20: 20 | O20: 29
A21: 16 | B21: RAJASTHAN | C21: YES | D21: 4 | E21: 1 | H21: 5 | I21: 4 | J21: 1 | N21: 5 | O21: 10
A22: 17 | B22: TAMILNADU | C22: YES | D22: 4 | E22: 1 | H22: 5 | I22: 4 | J22: 1 | K22: 1 | N22: 6 | O22: 11
A23: 18 | B23: UTTAR PRADESH | C23: NO | D23: 1 | E23: 1 | H23: 2 | I23: 3 | J23: 1 | N23: 4 | O23: 6
A24: 19 | B24: UTTARAKHAND | C24: YES | D24: 1 | E24: 1 | H24: 2 | I24: 2 | J24: 1 | N24: 3 | O24: 5
A25: 20 | B25: TELANGANA | C25: NO | F25: 1 | H25: 1 | O25: 1
B26: Grand Total | D26: 47 | E26: 17 | F26: 5 | G26: 1 | H26: 70 | I26: 63 | J26: 18 | K26: 1 | L26: 9 | M26: 9 | N26: 100 | O26: 170

Sheet TT NC
A1: National Championship- Table Tennis
A2: Chandigarh | B2: Count of NAME | D2: Column Labels
D3: FEMALE | G3: FEMALE Total | H3: MALE | K3: MALE Total | L3: Grand Total
B4: STATE | C4: SG Report | D4: ATHLETE | E4: COACH | F4: PARTNER | H4: ATHLETE | I4: COACH | J4: PARTNER
A5: Sr. No | B5: ANDHRA PRADESH | C5: NO | D5: 4 | E5: 1 | G5: 5 | H5: 4 | I5: 1 | K5: 5 | L5: 10
A6: 1 | B6: BIHAR | C6: NO | D6: 1 | E6: 1 | G6: 2 | H6: 1 | I6: 2 | K6: 3 | L6: 5
A7: 2 | B7: CHANDIGARH | C7: NO | D7: 7 | E7: 1 | G7: 8 | H7: 8 | I7: 1 | K7: 9 | L7: 17
A8: 3 | B8: CHATTISGARH | C8: NO | H8: 2 | I8: 1 | K8: 3 | L8: 3
A9: 4 | B9: DELHI | C9: YES | D9: 2 | E9: 1 | F9: 1 | G9: 4 | H9: 3 | I9: 2 | J9: 1 | K9: 6 | L9: 10
A10: 5 | B10: GUJARAT | C10: NO | D10: 4 | E10: 2 | F10: 1 | G10: 7 | H10: 5 | I10: 2 | J10: 1 | K10: 8 | L10: 15
A11: 6 | B11: HARYANA | C11: NO | D11: 4 | E11: 1 | G11: 5 | H11: 4 | I11: 2 | J11: 1 | K11: 7 | L11: 12
A12: 7 | B12: HIMACHAL PRADESH | C12: NO | D12: 3 | E12: 1 | G12: 4 | H12: 4 | I12: 2 | K12: 6 | L12: 10
A13: 8 | B13: KARNATAKA | C13: NO | D13: 1 | E13: 1 | F13: 1 | G13: 3 | H13: 3 | I13: 1 | J13: 1 | K13: 5 | L13: 8
A14: 9 | B14: KASHMIR | C14: NO | D14: 3 | E14: 2 | F14: 1 | G14: 6 | H14: 3 | I14: 1 | J14: 1 | K14: 5 | L14: 11
A15: 10 | B15: KERALA | C15: NO | D15: 3 | E15: 1 | F15: 1 | G15: 5 | H15: 3 | I15: 1 | J15: 1 | K15: 5 | L15: 10
A16: 11 | B16: MADHYA PRADESH | C16: NO | H16: 3 | I16: 1 | K16: 4 | L16: 4
A17: 12 | B17: MAHARASHTRA | C17: NO | D17: 3 | E17: 2 | F17: 1 | G17: 6 | H17: 5 | I17: 3 | J17: 1 | K17: 9 | L17: 15
A18: 13 | B18: PONDICHERRY | C18: NO | D18: 3 | E18: 1 | G18: 4 | H18: 3 | I18: 1 | J18: 1 | K18: 5 | L18: 9
A19: 14 | B19: PUNJAB | C19: NO | D19: 3 | E19: 2 | F19: 1 | G19: 6 | H19: 4 | I19: 1 | J19: 1 | K19: 6 | L19: 12
A20: 15 | B20: RAJASTHAN | C20: YES | D20: 4 | E20: 2 | F20: 1 | G20: 7 | H20: 4 | I20: 2 | J20: 1 | K20: 7 | L20: 14
A21: 16 | B21: TAMIL NADU | C21: NO | D21: 3 | E21: 2 | F21: 1 | G21: 6 | H21: 4 | I21: 2 | J21: 1 | K21: 7 | L21: 13
A22: 17 | B22: UTTAR PRADESH | C22: NO | D22: 3 | E22: 1 | F22: 1 | G22: 5 | H22: 4 | I22: 2 | J22: 1 | K22: 7 | L22: 12
A23: 18 | B23: WEST BENGAL | C23: NO | H23: 4 | I23: 1 | K23: 5 | L23: 5
B24: Grand Total | D24: 51 | E24: 22 | F24: 10 | G24: 83 | H24: 71 | I24: 29 | J24: 12 | K24: 112 | L24: 195

Sheet BD NC
B1: National Championship Badminton
B2: Gandhu Nagar, Gujarat 15-19 June 2025
A3: Sr No | B3: State | C3: SG Report | D3: Athlete | E3: Coach | F3: Partner | G3: Grand Total
A4: 1 | B4: Andhra Pradesh | C4: YES | D4: 6 | E4: 2 | G4: 8
A5: 2 | B5: Bihar | C5: NO | D5: 8 | E5: 2 | F5: 2 | G5: 12
A6: 3 | B6: Chandigarh | C6: NO | D6: 5 | E6: 2 | F6: 2 | G6: 9
A7: 4 | B7: Chattisgarh | C7: NO | D7: 6 | E7: 3 | F7: 2 | G7: 11
A8: 5 | B8: Delhi | C8: YES | D8: 6 | E8: 2 | F8: 2 | G8: 10
A9: 6 | B9: Gujarat | C9: YES | D9: 10 | E9: 5 | F9: 2 | G9: 17
A10: 7 | B10: Haryana | C10: NO | D10: 7 | E10: 2 | G10: 9
A11: 8 | B11: Himachal Pradesh | C11: NO | D11: 8 | E11: 4 | F11: 2 | G11: 14
A12: 9 | B12: Jammu | C12: NO | D12: 3 | E12: 1 | F12: 1 | G12: 5
A13: 10 | B13: Karnataka | C13: NO | D13: 6 | E13: 2 | F13: 2 | G13: 10
A14: 11 | B14: Kerala | C14: YES | D14: 7 | E14: 3 | F14: 2 | G14: 12
A15: 12 | B15: Madhya Pradesh | C15: NO | D15: 6 | E15: 2 | F15: 2 | G15: 10
A16: 13 | B16: Maharashtra | C16: NO | D16: 9 | E16: 3 | F16: 2 | G16: 14
A17: 14 | B17: Odisha | C17: NO | D17: 4 | E17: 2 | G17: 6
A18: 15 | B18: Pondicherry | C18: NO | D18: 6 | E18: 2 | F18: 2 | G18: 10
A19: 16 | B19: Punjab | C19: NO | D19: 9 | E19: 4 | F19: 2 | G19: 15
A20: 17 | B20: Rajasthan | C20: NO | D20: 10 | E20: 4 | F20: 2 | G20: 16
A21: 18 | B21: Tamil Nadu | C21: YES | D21: 7 | E21: 2 | F21: 1 | G21: 10
A22: 19 | B22: Uttarkhand | C22: NO | D22: 8 | E22: 4 | F22: 2 | G22: 14
A23: 20 | B23: West Bengal | C23: NO | D23: 6 | E23: 2 | F23: 1 | G23: 9
B24: Grand Total | D24: 137 | E24: 53 | F24: 31 | G24: 221

Sheet VB NC
A1: National Championship Volleyball
A2: Gandhi Nagar, Gujarat 15-19 June 2025
A3: Sr No | B3: State | C3: SG Report | D3: Athlete | E3: Coach | F3: Escort/Selector | G3: Partner | H3: Grand Total
A4: 1 | B4: Andhra Pradesh | C4: NO | D4: 4 | E4: 2 | G4: 2 | H4: 8
A5: 2 | B5: Bihar | C5: NO | D5: 7 | E5: 2 | G5: 2 | H5: 11
A6: 3 | B6: Delhi | C6: YES | D6: 10 | E6: 4 | G6: 4 | H6: 18
A7: 4 | B7: Gujarat | C7: NO | D7: 12 | E7: 5 | G7: 4 | H7: 21
A8: 5 | B8: Himachal Pradesh | C8: NO | D8: 4 | E8: 1 | G8: 2 | H8: 7
A9: 6 | B9: Jammu | C9: NO | D9: 3 | E9: 1 | G9: 1 | H9: 5
A10: 7 | B10: Karnataka | C10: NO | D10: 8 | E10: 2 | G10: 6 | H10: 16
A11: 8 | B11: Kerala | C11: NO | D11: 8 | E11: 2 | G11: 4 | H11: 14
A12: 9 | B12: Maharashtra | C12: NO | D12: 12 | E12: 4 | F12: 1 | G12: 4 | H12: 21
A13: 10 | B13: Odisha | C13: NO | D13: 4 | E13: 2 | G13: 2 | H13: 8
A14: 11 | B14: Pondicherry | C14: NO | D14: 4 | E14: 1 | G14: 2 | H14: 7
A15: 12 | B15: Punjab | C15: NO | D15: 10 | E15: 5 | G15: 4 | H15: 19
A16: 13 | B16: Rajasthan | C16: YES | D16: 9 | E16: 4 | G16: 2 | H16: 15
A17: 14 | B17: Tamil Nadu | C17: YES | D17: 8 | E17: 3 | G17: 3 | H17: 14
A18: 15 | B18: Uttarakhand | C18: NO | D18: 5 | E18: 2 | G18: 2 | H18: 9
A19: 16 | B19: West Bengal | C19: NO | D19: 8 | E19: 2 | G19: 4 | H19: 14
B20: Grand Total | D20: 116 | E20: 42 | F20: 1 | G20: 48 | H20: 207

Sheet TE NC
B1: National Championship Tennis
B2: CDS Gwalior- Madhya Pradesh | I2: as on 13 July 25
B3: Count of NAME | D3: Column Labels
D4: FEMALE | J4: FEMALE Total | K4: MALE | P4: MALE Total | Q4: Grand Total
A5: SR NO | B5: State | C5: SG REPORT | D5: ATHLETE | E5: COACH | F5: ESCORT | G5: EXPERT | H5: PARTNER | I5: SUPPORT STAFF | K5: ATHLETE | L5: COACH | M5: EXPERT | N5: PARTNER | O5: SUPPORT STAFF
A6: 1 | B6: BIHAR | C6: NO | K6: 1 | L6: 1 | N6: 1 | P6: 3 | Q6: 3
A7: 2 | B7: DELHI | C7: NO | D7: 3 | E7: 1 | H7: 1 | J7: 5 | K7: 3 | L7: 2 | N7: 1 | O7: 3 | P7: 9 | Q7: 14
A8: 3 | B8: GUJARAT | C8: NO | D8: 2 | E8: 2 | H8: 1 | J8: 5 | K8: 3 | L8: 2 | N8: 1 | P8: 6 | Q8: 11
A9: 4 | B9: HARYANA | C9: NO | D9: 1 | E9: 1 | J9: 2 | K9: 2 | L9: 1 | O9: 1 | P9: 4 | Q9: 6
A10: 5 | B10: KARNATAKA | C10: NO | K10: 2 | L10: 1 | P10: 3 | Q10: 3
A11: 6 | B11: KERALA | C11: NO | D11: 1 | E11: 1 | J11: 2 | K11: 2 | L11: 1 | P11: 3 | Q11: 5
A12: 7 | B12: MAHARASHTRA | C12: NO | K12: 1 | L12: 1 | P12: 2 | Q12: 2
A13: 8 | B13: PUNJAB | C13: NO | D13: 3 | E13: 1 | J13: 4 | K13: 3 | L13: 1 | P13: 4 | Q13: 8
A14: 9 | B14: RAJASTHAN | C14: YES | D14: 2 | E14: 1 | J14: 3 | K14: 2 | L14: 1 | N14: 1 | P14: 4 | Q14: 7
A15: 10 | B15: TAMIL NADU | C15: YES | K15: 2 | L15: 1 | N15: 1 | P15: 4 | Q15: 4
A16: 11 | B16: TELANGANA | C16: NO | F16: 1 | J16: 1 | K16: 2 | L16: 1 | O16: 1 | P16: 4 | Q16: 5
A17: 12 | B17: UTTAR PRADESH | C17: YES | K17: 3 | L17: 2 | N17: 1 | P17: 6 | Q17: 6
A18: 13 | B18: MADHYA PRADESH | C18: NO | G18: 1 | I18: 7 | J18: 8 | M18: 4 | O18: 12 | P18: 16 | Q18: 24
B19: Grand Total | D19: 12 | E19: 7 | F19: 1 | G19: 1 | H19: 2 | I19: 7 | J19: 30 | K19: 26 | L19: 15 | M19: 4 | N19: 6 | O19: 17 | P19: 68 | Q19: 98

Sheet BD ST
A1: National Selection Trials Badminton
A2: CDS Gwalior- Madhya Pradesh | D2: 05-09 May 2025
B3: Count of NAME | D3: Column Labels
A4: Sr. No | B4: State | C4: SG REPORT | D4: ATHLETE | E4: COACH | F4: Grand Total
A5: 1 | B5: ASSAM | C5: NO | D5: 2 | E5: 1 | F5: 3
A6: 2 | B6: CHANDIGARH | C6: NO | D6: 2 | E6: 1 | F6: 3
A7: 3 | B7: CHATTISGARH | C7: NO | D7: 1 | E7: 1 | F7: 2
A8: 4 | B8: DELHI | C8: YES | D8: 4 | E8: 2 | F8: 6
A9: 5 | B9: GUJARAT | C9: NO | D9: 4 | E9: 2 | F9: 6
A10: 6 | B10: HIMACHAL PRADESH | C10: NO | D10: 3 | E10: 2 | F10: 5
A11: 7 | B11: KERALA | C11: YES | D11: 4 | E11: 2 | F11: 6
A12: 8 | B12: MADHYA PRADESH | C12: NO | D12: 4 | E12: 2 | F12: 6
A13: 9 | B13: MAHARASHTRA | C13: NO | D13: 4 | E13: 2 | F13: 6
A14: 10 | B14: ODISHA | C14: NO | D14: 2 | E14: 1 | F14: 3
A15: 11 | B15: PONDICHERRY | C15: NO | D15: 4 | E15: 2 | F15: 6
A16: 12 | B16: PUNJAB | C16: NO | D16: 4 | E16: 2 | F16: 6
A17: 13 | B17: TAMIL NADU | C17: NO | D17: 1 | E17: 1 | F17: 2
B18: Grand Total | D18: 39 | E18: 21 | F18: 60

Sheet BO NC
B1: National Championship Bocce | J1: as on 24 July 25
B2: Chattisgarh 24-28 July 2025
B3: Count of NAME | D3: Column Labels
D4: ATHLETE | F4: ATHLETE Total | G4: COACH | I4: COACH Total | J4: ESCORT | K4: ESCORT Total | L4: PARTNER | N4: PARTNER Total | O4: Grand Total
A5: Sr. No | B5: State | C5: ST REPORT | D5: FEMALE | E5: MALE | G5: FEMALE | H5: MALE | J5: FEMALE | L5: FEMALE | M5: MALE
A6: 1 | B6: ANDHRA PRADESH | C6: YES | D6: 3 | E6: 3 | F6: 6 | G6: 2 | H6: 2 | I6: 4 | L6: 1 | M6: 1 | N6: 2 | O6: 12
A7: 2 | B7: ASSAM | C7: YES | D7: 1 | E7: 4 | F7: 5 | G7: 1 | H7: 1 | I7: 2 | O7: 7
A8: 3 | B8: BIHAR | C8: NO | D8: 2 | E8: 4 | F8: 6 | G8: 1 | H8: 3 | I8: 4 | L8: 1 | M8: 1 | N8: 2 | O8: 12
A9: 4 | B9: CHHATTISGARH | C9: NO | D9: 4 | E9: 4 | F9: 8 | G9: 1 | H9: 2 | I9: 3 | L9: 1 | M9: 1 | N9: 2 | O9: 13
A10: 5 | B10: DELHI | C10: YES | D10: 2 | E10: 2 | F10: 4 | G10: 1 | H10: 1 | I10: 2 | L10: 1 | M10: 1 | N10: 2 | O10: 8
A11: 6 | B11: GUJARAT | C11: NO | D11: 4 | E11: 4 | F11: 8 | G11: 2 | H11: 2 | I11: 4 | L11: 1 | M11: 1 | N11: 2 | O11: 14
A12: 7 | B12: HARYANA | C12: NO | D12: 4 | E12: 4 | F12: 8 | G12: 1 | H12: 1 | I12: 2 | O12: 10
A13: 8 | B13: HIMACHAL PRADESH | C13: NO | D13: 4 | E13: 4 | F13: 8 | G13: 2 | H13: 2 | I13: 4 | L13: 1 | M13: 1 | N13: 2 | O13: 14
A14: 9 | B14: JAMMU & KASHMIR | C14: NO | E14: 4 | F14: 4 | H14: 2 | I14: 2 | M14: 1 | N14: 1 | O14: 7
A15: 10 | B15: JHARKHAND | C15: NO | D15: 4 | E15: 4 | F15: 8 | G15: 2 | H15: 1 | I15: 3 | L15: 1 | M15: 1 | N15: 2 | O15: 13
A16: 11 | B16: KARNATAKA | C16: NO | D16: 4 | E16: 4 | F16: 8 | G16: 1 | H16: 1 | I16: 2 | O16: 10
A17: 12 | B17: KERALA | C17: NO | D17: 2 | E17: 2 | F17: 4 | G17: 1 | H17: 1 | I17: 2 | O17: 6
A18: 13 | B18: MADHYA PRADESH | C18: NO | D18: 4 | E18: 4 | F18: 8 | G18: 2 | H18: 2 | I18: 4 | O18: 12
A19: 14 | B19: MAHARASHTRA | C19: NO | D19: 4 | E19: 4 | F19: 8 | G19: 2 | H19: 3 | I19: 5 | L19: 1 | M19: 1 | N19: 2 | O19: 15
A20: 15 | B20: PONDICHERRY | C20: NO | D20: 3 | E20: 3 | F20: 6 | G20: 1 | H20: 1 | I20: 2 | L20: 1 | M20: 1 | N20: 2 | O20: 10
A21: 16 | B21: PUNJAB | C21: NO | D21: 3 | E21: 4 | F21: 7 | G21: 3 | H21: 2 | I21: 5 | L21: 1 | M21: 1 | N21: 2 | O21: 14
A22: 17 | B22: RAJASTHAN | C22: YES | D22: 4 | E22: 4 | F22: 8 | G22: 2 | H22: 2 | I22: 4 | J22: 1 | K22: 1 | L22: 1 | M22: 1 | N22: 2 | O22: 15
A23: 18 | B23: TAMIL NADU | C23: NO | D23: 4 | E23: 4 | F23: 8 | G23: 2 | H23: 2 | I23: 4 | O23: 12
A24: 19 | B24: TELANGANA | C24: YES | E24: 2 | F24: 2 | H24: 1 | I24: 1 | O24: 3
A25: 20 | B25: UTTAR PRADESH | C25: NO | D25: 3 | E25: 3 | F25: 6 | G25: 2 | H25: 1 | I25: 3 | L25: 1 | M25: 1 | N25: 2 | O25: 11
A26: 21 | B26: UTTARAKHAND | C26: NO | D26: 2 | E26: 2 | F26: 4 | G26: 1 | H26: 1 | I26: 2 | M26: 1 | N26: 1 | O26: 7
A27: 22 | B27: WEST BENGAL | C27: NO | D27: 2 | E27: 3 | F27: 5 | G27: 1 | H27: 1 | I27: 2 | L27: 1 | N27: 1 | O27: 8
B28: Grand Total | D28: 63 | E28: 76 | F28: 139 | G28: 31 | H28: 35 | I28: 66 | J28: 1 | K28: 1 | L28: 13 | M28: 14 | N28: 27 | O28: 233

Sheet SW NC
A1: National Championship Swimming
A2: Mumbai- Maharashtra | C2: 3--7 Aug 25 | H2: As on 8 Aug 25
B3: Count of NAME | C3: Column Labels
C4: FEMALE | E4: FEMALE Total | F4: MALE | H4: MALE Total | I4: Grand Total
A5: Sr. No | B5: Row Labels | C5: ATHLETE | D5: COACH | F5: ATHLETE | G5: COACH
A6: 1 | B6: ANDHRA PRADESH | D6: 1 | E6: 1 | F6: 1 | H6: 1 | I6: 2
A7: 2 | B7: BIHAR | F7: 3 | G7: 2 | H7: 5 | I7: 5
A8: 3 | B8: CHANDIGARH | C8: 2 | D8: 2 | E8: 4 | F8: 3 | G8: 1 | H8: 4 | I8: 8
A9: 4 | B9: CHATTISGARH | F9: 1 | G9: 1 | H9: 2 | I9: 2
A10: 5 | B10: DELHI | C10: 2 | D10: 1 | E10: 3 | F10: 4 | G10: 2 | H10: 6 | I10: 9
A11: 6 | B11: GUJARAT | C11: 1 | D11: 1 | E11: 2 | F11: 3 | G11: 2 | H11: 5 | I11: 7
A12: 7 | B12: HARYANA | C12: 1 | E12: 1 | F12: 1 | G12: 2 | H12: 3 | I12: 4
A13: 8 | B13: JHARKHAND | D13: 1 | E13: 1 | F13: 1 | G13: 1 | H13: 2 | I13: 3
A14: 9 | B14: KARNATAKA | C14: 5 | D14: 1 | E14: 6 | F14: 3 | G14: 1 | H14: 4 | I14: 10
A15: 10 | B15: KERALA | C15: 3 | D15: 2 | E15: 5 | F15: 2 | G15: 1 | H15: 3 | I15: 8
A16: 11 | B16: MADHYA PRADESH | C16: 3 | D16: 1 | E16: 4 | F16: 4 | G16: 3 | H16: 7 | I16: 11
A17: 12 | B17: MAHARASHTRA | C17: 4 | D17: 2 | E17: 6 | F17: 6 | G17: 2 | H17: 8 | I17: 14
A18: 13 | B18: ODISHA | C18: 1 | D18: 1 | E18: 2 | F18: 2 | G18: 1 | H18: 3 | I18: 5
A19: 14 | B19: PUNJAB | C19: 1 | E19: 1 | F19: 4 | G19: 3 | H19: 7 | I19: 8
A20: 15 | B20: RAJASTHAN | C20: 1 | E20: 1 | F20: 4 | G20: 2 | H20: 6 | I20: 7
A21: 16 | B21: TAMIL NADU | C21: 3 | D21: 1 | E21: 4 | F21: 4 | G21: 3 | H21: 7 | I21: 11
A22: 17 | B22: TELENGANA | F22: 3 | G22: 2 | H22: 5 | I22: 5
A23: 18 | B23: UTTAR PRADESH | C23: 2 | D23: 1 | E23: 3 | F23: 4 | G23: 2 | H23: 6 | I23: 9
B24: Grand Total | C24: 29 | D24: 15 | E24: 44 | F24: 53 | G24: 31 | H24: 84 | I24: 128

Sheet FB ST
A1: Meet the World SKF Gothia Cup Selection trials- Football
A2: Manav Rachna University- Faridabad, Haryana
A3: April 24-28, 2025
B4: Count of NAME | D4: Column Labels
A5: Sr. No | B5: State | C5: SG REPORT | D5: ATHLETE | E5: COACH | F5: Grand Total
A6: 1 | B6: ASSAM | C6: YES | D6: 5 | E6: 1 | F6: 6
A7: 2 | B7: CHANDIGARH | C7: NO | D7: 5 | E7: 1 | F7: 6
A8: 3 | B8: CHATTISGARH | C8: NO | D8: 5 | E8: 1 | F8: 6
A9: 4 | B9: DELHI | C9: NO | D9: 5 | E9: 1 | F9: 6
A10: 5 | B10: GOA | C10: NO | D10: 5 | E10: 1 | F10: 6
A11: 6 | B11: GUJARAT | C11: NO | D11: 5 | E11: 1 | F11: 6
A12: 7 | B12: HARYANA | C12: NO | D12: 5 | E12: 1 | F12: 6
A13: 8 | B13: HIMACHAL PRADESH | C13: NO | D13: 5 | E13: 1 | F13: 6
A14: 9 | B14: JHARKHAND | C14: YES | D14: 5 | E14: 1 | F14: 6
A15: 10 | B15: KASHMIR | C15: NO | D15: 5 | E15: 1 | F15: 6
A16: 11 | B16: KERALA | C16: NO | D16: 5 | E16: 1 | F16: 6
A17: 12 | B17: MADHYA PRADESH | C17: NO | D17: 5 | E17: 1 | F17: 6
A18: 13 | B18: MAHARASHTRA | C18: NO | D18: 5 | E18: 1 | F18: 6
A19: 14 | B19: ODISHA | C19: NO | D19: 5 | E19: 1 | F19: 6
A20: 15 | B20: PONDICHERRY | C20: NO | D20: 5 | E20: 1 | F20: 6
A21: 16 | B21: PUNJAB | C21: NO | D21: 5 | E21: 1 | F21: 6
A22: 17 | B22: RAJASTHAN | C22: NO | D22: 5 | E22: 1 | F22: 6
A23: 18 | B23: TAMIL NADU | C23: NO | D23: 5 | E23: 1 | F23: 6
A24: 19 | B24: UTTAR PRADESH | C24: NO | D24: 5 | E24: 1 | F24: 6
A25: 20 | B25: WEST BENGAL | C25: NO | D25: 5 | E25: 1 | F25: 6
B26: Grand Total | D26: 100 | E26: 20 | F26: 120
E27: as on 23 April 2025

Sheet time line NC
B1: National Championship
A2: Sr No | B2: Time Line-Planning and implementation
B3: Proposal to SAI along with budget
B4: SC Members list and letter | C4: Harpreet
B5: Booklet | C5: Khurram for information | D5: sending to state by Harpreet
A7: 1 | B7: Program date & training venue coordination / Confirmation with the state.
A8: 2 | B8: Check with states about their willingness to particpate
A9: 3 | B9: Information booklet - prepare
A10: 4 | B10: Shareing with participating states.
A11: 5 | B11: List of participants from states- registration, medical form, IQ certificates etc. | C11: Khurram will collect and maintain by abhishek
A12: 6 | B12: Coordinate with Sports Specific Coaches for NCC, NC | C12: khurram willl cordinate
A13: 7 | B13: Certificate, medals dispatch to the host state | C13: khurram will do
A14: 8 | B14: Maintaining NCC/Championship certification / Results | C14: khurram will do
A15: 9 | B15: States Selection certificate, Games report, participant names with Assessments score sheet, & Uploading the same on SAI Portal. | C15: Khurram will do
B16: Uploading the same on SAI Portal. | C16: Shivam
A17: 10 | B17: Prepare the schedule and other formats and send to host state for use. | C17: khurram
A18: 12 | B18: Check with the state regarding ground, Sports equipment’s, accommodation & classroom facilities. | C18: khurram
A19: 13 | B19: After competition of the events coordinate about the comprehensive report, list of participants, results, attendance sheet, event feedback, Individual Skill Assessment, divisioning sheets & score sheets with coaches & RPs signature, Final Scores and recommended campers list for next camp/event with selection committee member signature, | C19: khurram
A20: 14 | B20: Norms set for Championship in consultation technical expert | C20: khurram
A21: 15 | B21: Back drop & standees | C21: khurram
A22: 16 | B22: Stationery items required list | C22: khurram
A23: 17 | B23: Schedule for opening, closing, awards and sports events | C23: khurram
A24: 18 | B24: Check pluge states cards for National Championship | C24: khurram
